fUSD/lending_fUSD_20240328
["ID","MTS","AMOUNT","RATE_DAILY","PERIOD"]
[320840149,1711612235247,-500.0,0.00054246,120]
[320840150,1711612235257,-500.0,0.00054246,120]
[320840151,1711612235267,-500.0,0.00054246,120]
[320840152,1711612235277,-500.0,0.00054246,120]
[320840153,1711612235287,-1848.71,0.00054246,120]
[320840154,1711612235296,-500.0,0.00054246,120]
[320840155,1711612235306,-500.0,0.00054246,120]
[320840156,1711612235315,-500.0,0.00054246,120]
[320840157,1711612235326,-508.6155436,0.00054246,120]
[320840158,1711612235335,-502.34964566,0.00054246,120]
[320840159,1711612235345,-500.0,0.00054246,120]
[320840160,1711612235355,-504.70547582,0.00054246,120]
[320840161,1711612235365,-500.0,0.00054246,120]
[320840162,1711612235375,-562.09,0.00054246,120]
[320840163,1711612235385,-500.0,0.00054246,120]
[320840164,1711612235395,-500.0,0.00054246,120]
[320840165,1711612235405,-500.0,0.00054246,120]
[320840166,1711612235418,-500.0,0.00054246,120]
[320840167,1711612235428,-500.0,0.00054246,120]
[320840168,1711612235438,-507.62323775,0.00054246,120]
[320840169,1711612235448,-500.0,0.00054246,120]
[320840170,1711612235459,-505.95198336,0.00054246,120]
[320840171,1711612235469,-500.0,0.00054246,2]
[320840172,1711612235480,-500.0,0.00054246,120]
[320840173,1711612235490,-711.71,0.00054246,120]
[320840174,1711612235500,-506.9411023,0.00054246,120]
[320840175,1711612235510,-500.0,0.00054246,120]
[320840176,1711612235521,-500.0,0.00054246,120]
[320840177,1711612235531,-500.0,0.00054246,120]
[320840178,1711612235541,-500.0,0.00054246,120]
[320840179,1711612235551,-500.0,0.00054246,120]
[320840180,1711612235561,-500.0,0.00054246,120]
[320840181,1711612235572,-504.67830186,0.00054246,120]
[320840182,1711612235583,-500.0,0.00054246,120]
[320840183,1711612235594,-508.55145972,0.00054246,120]
[320840184,1711612235606,-616.75,0.00054246,120]
[320840185,1711612235616,-752.31,0.00054246,120]
[320840186,1711612235626,-500.0,0.00054246,120]
[320840187,1711612235637,-615.39354628,0.00054246,120]
[320840188,1711612235647,-500.0,0.00054246,120]
[320840189,1711612235657,-500.0,0.00054246,120]
[320840190,1711612235667,-500.0,0.00054246,120]
[320840191,1711612235677,-500.0,0.00054246,120]
[320840192,1711612235691,-1239.21,0.00054246,120]
[320840193,1711612235702,-500.0,0.00054246,120]
[320840194,1711612235712,-500.0,0.00054246,120]
[320840195,1711612235724,-500.0,0.00054246,120]
[320840196,1711612235734,-507.54460188,0.00054246,120]
[320840197,1711612235744,-508.83498122,0.00054246,120]
[320840198,1711612235754,-511.01849018,0.00054246,120]
[320840199,1711612235764,-500.0,0.00054246,120]
[320840200,1711612235776,-500.0,0.00054246,60]
[320840201,1711612235786,-500.0,0.00054246,120]
[320840202,1711612235796,-510.74174336,0.00054246,120]
[320840203,1711612235806,-508.27824603,0.00054246,120]
[320840204,1711612235816,-500.0,0.00054246,120]
[320840205,1711612235826,-506.90580713,0.00054246,120]
[320840206,1711612235836,-500.0,0.00054246,120]
[320840207,1711612235848,-500.0,0.00054246,120]
[320840208,1711612235858,-500.0,0.00054246,120]
[320840209,1711612235868,-500.0,0.00054246,120]
[320840210,1711612235878,-1092.26,0.00054246,120]
[320840211,1711612235889,-396.21845345,0.00054246,2]
[320840212,1711612235899,-500.0,0.00054246,120]
[320840213,1711612235910,-500.0,0.00054246,120]
[320840214,1711612235921,-500.0,0.00054246,2]
[320840215,1711612235932,-417.32707316,0.00054246,120]
[320840216,1711612235942,-1244.65,0.00054246,120]
[320840217,1711612235953,-514.1657008,0.00054246,120]
[320840218,1711612235967,-500.0,0.00054246,120]
[320840219,1711612235978,-512.87847154,0.00054246,120]
[320840220,1711612235988,-316.53737618,0.00054246,120]
[320840221,1711612235998,-500.0,0.00054246,120]
[320840222,1711612236009,-500.0,0.00054246,120]
[320840223,1711612236020,-998.53,0.00054246,120]
[320840224,1711612236030,-500.0,0.00054246,120]
[320840225,1711612236040,-500.0,0.00054246,120]
[320840226,1711612236050,-712.45,0.00054246,120]
[320840227,1711612236061,-508.43275383,0.00054246,120]
[320840228,1711612236071,-500.0,0.00054246,120]
[320840229,1711612236082,-500.0,0.00054246,120]
[320840230,1711612236092,-500.0,0.00054246,120]
[320840231,1711612236102,-500.0,0.00054246,120]
[320840232,1711612236111,-500.0,0.00054246,120]
[320840233,1711612236122,-493.98382029,0.00054246,120]
[320840234,1711612236132,-645.99,0.00054246,120]
[320840235,1711612236141,-1266.41,0.00054246,120]
[320840236,1711612236151,-505.65837731,0.00054246,120]
[320840237,1711612236161,-500.0,0.00054246,120]
[320840238,1711612236171,-500.0,0.00054246,120]
[320840239,1711612236181,-500.0,0.00054246,120]
[320840240,1711612236191,-1458.93,0.00054246,120]
[320840241,1711612236201,-500.0,0.00054246,120]
[320840242,1711612236211,-512.48896831,0.00054246,120]
[320840243,1711612236222,-634.28,0.00054246,120]
[320840244,1711612236233,-512.81525726,0.00054246,120]
[320840245,1711612236243,-509.32327384,0.00054246,120]
[320840246,1711612236253,-509.73569931,0.00054246,120]
[320840247,1711612236263,-1104.62,0.00054246,120]
[320840248,1711612236274,-500.0,0.00054246,120]
[320840249,1711612236285,-532.69,0.00054246,120]
[320840250,1711612236296,-500.0,0.00054246,120]
[320840251,1711612236307,-500.0,0.00054246,120]
[320840252,1711612236318,-541.64043625,0.00054246,120]
[320840253,1711612236328,-500.0,0.00054246,120]
[320840254,1711612236339,-500.0,0.00054246,120]
[320840255,1711612236350,-500.0,0.00054246,120]
[320840256,1711612236361,-500.0,0.00054246,120]
[320840257,1711612236371,-500.0,0.00054246,120]
[320840258,1711612236381,-500.0,0.00054246,120]
[320840259,1711612236392,-500.0,0.00054246,120]
[320840260,1711612236402,-500.0,0.00054246,120]
[320840261,1711612236412,-921.74,0.00054246,120]
[320840262,1711612236422,-500.0,0.00054246,120]
[320840263,1711612236433,-500.0,0.00054246,120]
[320840264,1711612236443,-158.66929298,0.00054246,120]
[320840265,1711612236453,-500.0,0.00054246,120]
[320840266,1711612236463,-170.1426827,0.00054246,120]
[320840267,1711612236473,-500.0,0.00054246,120]
[320840268,1711612236482,-500.0,0.00054246,120]
[320840269,1711612236492,-506.48179214,0.00054246,120]
[320840270,1711612236502,-510.1,0.00054246,120]
[320840271,1711612236511,-500.0,0.00054246,120]
[320840272,1711612236523,-500.0,0.00054246,120]
[320840273,1711612236533,-500.0,0.00054246,120]
[320840274,1711612236544,-534.39021228,0.00054246,120]
[320840275,1711612236554,-500.0,0.00054246,120]
[320840276,1711612236564,-500.0,0.00054246,15]
[320840277,1711612236574,-500.0,0.00054246,120]
[320840278,1711612236584,-804.32,0.00054246,120]
[320840279,1711612236595,-507.87708185,0.00054246,120]
[320840280,1711612236607,-500.0,0.00054246,120]
[320840281,1711612236617,-500.0,0.00054246,120]
[320840282,1711612236627,-1186.11,0.00054246,120]
[320840283,1711612236638,-510.61121855,0.00054246,120]
[320840284,1711612236648,-500.0,0.00054246,120]
[320840285,1711612236658,-500.0,0.00054246,120]
[320840286,1711612236668,-510.64688269,0.00054246,120]
[320840287,1711612236679,-500.0,0.00054246,120]
[320840288,1711612236689,-526.41869502,0.00054246,120]
[320840289,1711612236699,-500.0,0.00054246,120]
[320840290,1711612236708,-519.08336553,0.00054246,120]
[320840291,1711612236720,-299.68201735,0.00054246,120]
[320840292,1711612236732,-500.0,0.00054246,120]
[320840293,1711612236742,-517.46644861,0.00054246,120]
[320840294,1711612236752,-1192.62,0.00054246,120]
[320840295,1711612236762,-890.91,0.00054246,120]
[320840296,1711612236772,-500.0,0.00054246,120]
[320840297,1711612236784,-500.0,0.00054246,120]
[320840298,1711612236793,-500.0,0.00054246,120]
[320840299,1711612236803,-500.0,0.00054246,120]
[320840300,1711612236812,-514.74,0.00054246,120]
[320840301,1711612236822,-500.0,0.00054246,120]
[320840302,1711612236833,-500.0,0.00054246,120]
[320840303,1711612236842,-500.0,0.00054246,120]
[320840304,1711612236852,-500.0,0.00054246,120]
[320840305,1711612236862,-500.0,0.00054246,120]
[320840306,1711612236871,-500.0,0.00054246,120]
[320840307,1711612236968,-500.0,0.00054246,120]
[320840308,1711612236978,-832.74,0.00054246,120]
[320840309,1711612236987,-151.0,0.00054246,30]
[320840310,1711612236996,-500.0,0.00054246,120]
[320840311,1711612237006,-500.0,0.00054246,120]
[320840312,1711612237015,-728.76,0.00054246,120]
[320840313,1711612237024,-500.0,0.00054246,120]
[320840314,1711612237034,-498.41178407,0.00054246,120]
[320840315,1711612237044,-500.0,0.00054246,120]
[320840316,1711612237054,-500.0,0.00054246,120]
[320840317,1711612237064,-500.0,0.00054246,120]
[320840318,1711612237073,-500.0,0.00054246,120]
[320840319,1711612237083,-500.0,0.00054246,120]
[320840320,1711612237093,-500.0,0.00054246,120]
[320840321,1711612237103,-500.0,0.00054246,120]
[320840322,1711612237112,-301.16500429,0.00054246,120]
[320840323,1711612237122,-671.23,0.00054246,120]
[320840324,1711612237133,-1280.76,0.00054246,120]
[320840325,1711612237142,-500.0,0.00054246,120]
[320840326,1711612237153,-500.0,0.00054246,120]
[320840327,1711612237162,-507.01,0.00054246,120]
[320840328,1711612237171,-509.96708981,0.00054246,120]
[320840329,1711612237181,-515.95559442,0.00054246,120]
[320840330,1711612237192,-500.0,0.00054246,120]
[320840331,1711612237201,-529.82,0.00054246,120]
[320840332,1711612237211,-500.0,0.00054246,120]
[320840333,1711612237221,-833.13,0.00054246,120]
[320840334,1711612237230,-500.0,0.00054246,120]
[320840335,1711612237239,-500.0,0.00054246,120]
[320840336,1711612237250,-517.14097579,0.00054246,120]
[320840337,1711612237261,-579.62,0.00054246,120]
[320840338,1711612237272,-492.46799053,0.00054246,120]
[320840339,1711612237281,-500.0,0.00054246,120]
[320840340,1711612237290,-749.56,0.00054246,120]
[320840341,1711612237300,-500.0,0.00054246,120]
[320840342,1711612237310,-510.42236014,0.00054246,120]
[320840343,1711612237319,-904.97,0.00054246,120]
[320840344,1711612237329,-520.32,0.00054246,120]
[320840345,1711612237339,-500.0,0.00054246,120]
[320840346,1711612237349,-500.0,0.00054246,120]
[320840347,1711612237359,-500.0,0.00054246,120]
[320840348,1711612237368,-540.35608701,0.00054246,120]
[320840349,1711612237378,-500.0,0.00054246,120]
[320840350,1711612237387,-847.16,0.00054246,120]
[320840351,1711612237396,-500.0,0.00054246,120]
[320840352,1711612237405,-500.0,0.00054246,120]
[320840353,1711612237414,-500.0,0.00054246,120]
[320840354,1711612237423,-600.0,0.00054246,120]
[320840355,1711612237432,-643.63,0.00054246,120]
[320840356,1711612237441,-1160.06,0.00054246,120]
[320840357,1711612237451,-500.0,0.00054246,120]
[320840358,1711612237460,-1267.58,0.00054246,120]
[320840359,1711612237470,-1267.58,0.00054246,120]
[320840360,1711612237479,-1267.58,0.00054246,120]
[320840361,1711612237488,-500.0,0.00054246,120]
[320840362,1711612237499,-500.0,0.00054246,120]
[320840363,1711612237509,-505.09281915,0.00054246,120]
[320840364,1711612237521,-500.0,0.00054246,120]
[320840365,1711612237531,-631.91,0.00054246,120]
[320840366,1711612237540,-500.0,0.00054246,120]
[320840367,1711612237550,-500.0,0.00054246,120]
[320840368,1711612237559,-500.0,0.00054246,120]
[320840369,1711612237569,-502.24784874,0.00054246,120]
[320840370,1711612237579,-500.0,0.00054246,120]
[320840371,1711612237590,-685.46,0.00054246,120]
[320840372,1711612237600,-500.0,0.00054246,120]
[320840373,1711612237609,-500.0,0.00054246,120]
[320840374,1711612237618,-500.0,0.00054246,120]
[320840375,1711612237627,-500.0,0.00054246,120]
[320840376,1711612237636,-500.0,0.00054246,120]
[320840377,1711612237647,-520.29643011,0.00054246,120]
[320840378,1711612237656,-500.0,0.00054246,2]
[320840379,1711612237665,-500.0,0.00054246,120]
[320840380,1711612237675,-500.0,0.00054246,120]
[320840381,1711612237684,-500.0,0.00054246,120]
[320840382,1711612237696,-689.85,0.00054246,120]
[320840383,1711612237705,-800.84,0.00054246,120]
[320840384,1711612237715,-500.0,0.00054246,120]
[320840385,1711612237724,-500.0,0.00054246,120]
[320840386,1711612237734,-500.0,0.00054246,120]
[320840388,1711612237743,-500.0,0.00054246,120]
[320840390,1711612237753,-500.0,0.00054246,120]
[320840391,1711612237762,-500.0,0.00054246,120]
[320840392,1711612237773,-684.15,0.00054246,120]
[320840393,1711612237782,-500.0,0.00054246,120]
[320840394,1711612237791,-582.43291113,0.00054246,120]
[320840396,1711612237801,-500.0,0.00054246,120]
[320840398,1711612237810,-500.0,0.00054246,120]
[320840399,1711612237820,-500.0,0.00054246,120]
[320840401,1711612237830,-500.0,0.00054246,120]
[320840402,1711612237839,-892.76,0.00054246,120]
[320840403,1711612237849,-1223.97,0.00054246,120]
[320840404,1711612237860,-500.0,0.00054246,120]
[320840405,1711612237870,-500.0,0.00054246,120]
[320840406,1711612237880,-500.0,0.00054246,120]
[320840407,1711612237890,-500.0,0.00054246,120]
[320840408,1711612237899,-500.0,0.00054246,120]
[320840409,1711612237908,-151.0,0.00054246,120]
[320840410,1711612237918,-229.821355,0.00054246,120]
[320840411,1711612237927,-151.0,0.00054246,120]
[320840412,1711612237937,-500.0,0.00054246,120]
[320840413,1711612237946,-500.0,0.00054246,120]
[320840414,1711612237955,-500.0,0.00054246,120]
[320840415,1711612237965,-500.0,0.00054246,120]
[320840416,1711612237975,-1334.8,0.00054246,120]
[320840417,1711612237985,-500.0,0.00054246,120]
[320840418,1711612237994,-500.0,0.00054246,120]
[320840419,1711612238004,-500.0,0.00054246,120]
[320840420,1711612238013,-178.387637,0.00054246,120]
[320840421,1711612238024,-562.66,0.00054246,120]
[320840422,1711612238033,-500.0,0.00054246,120]
[320840423,1711612238043,-1183.85,0.00054246,120]
[320840424,1711612238054,-500.0,0.00054246,120]
[320840425,1711612238064,-500.0,0.00054246,120]
[320840426,1711612238074,-685.24,0.00054246,120]
[320840427,1711612238084,-151.0,0.00054246,120]
[320840428,1711612238095,-500.0,0.00054246,120]
[320840429,1711612238104,-564.7,0.00054246,120]
[320840430,1711612238114,-645.05,0.00054246,120]
[320840431,1711612238124,-500.0,0.00054246,120]
[320840432,1711612238133,-500.0,0.00054246,120]
[320840433,1711612238143,-1199.43,0.00054246,120]
[320840434,1711612238153,-500.0,0.00054246,120]
[320840435,1711612238163,-500.0,0.00054246,120]
[320840436,1711612238173,-500.0,0.00054246,120]
[320840437,1711612238182,-500.0,0.00054246,120]
[320840438,1711612238192,-500.0,0.00054246,120]
[320840439,1711612238202,-664.26,0.00054246,120]
[320840440,1711612238212,-500.0,0.00054246,120]
[320840441,1711612238222,-500.0,0.00054246,120]
[320840442,1711612238231,-809.96,0.00054246,120]
[320840443,1711612238240,-500.0,0.00054246,120]
[320840444,1711612238252,-1734.14,0.00054246,120]
[320840445,1711612238262,-500.0,0.00054246,120]
[320840446,1711612238272,-503.37,0.00054246,120]
[320840447,1711612238281,-500.0,0.00054246,120]
[320840448,1711612238290,-500.0,0.00054246,120]
[320840449,1711612238299,-636.3,0.00054246,30]
[320840450,1711612238308,-500.0,0.00054246,120]
[320840451,1711612238317,-500.0,0.00054246,120]
[320840452,1711612238326,-500.0,0.00054246,120]
[320840453,1711612238335,-500.0,0.00054246,120]
[320840454,1711612238345,-500.0,0.00054246,120]
[320840455,1711612238355,-500.0,0.00054246,120]
[320840456,1711612238365,-631.70053398,0.00054246,120]
[320840457,1711612238374,-500.0,0.00054246,120]
[320840458,1711612238383,-755.1,0.00054246,120]
[320840459,1711612238392,-500.0,0.00054246,120]
[320840460,1711612238402,-151.0,0.00054246,120]
[320840461,1711612238410,-151.0,0.00054246,120]
[320840462,1711612238420,-500.0,0.00054246,7]
[320840463,1711612238429,-500.0,0.00054246,120]
[320840464,1711612238439,-500.0,0.00054246,120]
[320840465,1711612238449,-151.0,0.00054246,60]
[320840467,1711612238458,-151.0,0.00054246,60]
[320840468,1711612238467,-151.0,0.00054246,60]
[320840469,1711612238477,-981.51,0.00054246,120]
[320840470,1711612238486,-500.0,0.00054246,120]
[320840471,1711612238496,-500.0,0.00054246,120]
[320840472,1711612238506,-151.0,0.00054246,60]
[320840474,1711612238515,-151.0,0.00054246,60]
[320840476,1711612238525,-151.0,0.00054246,60]
[320840477,1711612238533,-500.0,0.00054246,120]
[320840479,1711612238542,-706.3,0.00054246,120]
[320840481,1711612238552,-500.0,0.00054246,120]
[320840483,1711612238562,-593.28,0.00054246,120]
[320840485,1711612238572,-500.0,0.00054246,120]
[320840487,1711612238581,-517.75,0.00054246,120]
[320840489,1711612238590,-500.0,0.00054246,120]
[320840491,1711612238601,-1168.61,0.00054246,120]
[320840493,1711612238610,-500.0,0.00054246,120]
[320840495,1711612238619,-500.0,0.00054246,120]
[320840497,1711612238630,-500.0,0.00054246,120]
[320840499,1711612238644,-500.0,0.00054246,120]
[320840501,1711612238654,-503.73611207,0.00054246,120]
[320840503,1711612238663,-500.0,0.00054246,120]
[320840505,1711612238672,-1364.91,0.00054246,120]
[320840507,1711612238682,-500.0,0.00054246,120]
[320840509,1711612238693,-500.0,0.00054246,120]
[320840511,1711612238702,-500.0,0.00054246,120]
[320840513,1711612238711,-551.24,0.00054246,120]
[320840515,1711612238720,-500.0,0.00054246,120]
[320840517,1711612238730,-500.0,0.00054246,120]
[320840519,1711612238739,-522.14,0.00054246,120]
[320840521,1711612238749,-500.0,0.00054246,120]
[320840523,1711612238758,-500.0,0.00054246,120]
[320840525,1711612238769,-500.0,0.00054246,120]
[320840527,1711612238778,-500.0,0.00054246,120]
[320840528,1711612238787,-500.0,0.00054246,120]
[320840530,1711612238796,-500.0,0.00054246,120]
[320840531,1711612238806,-501.91,0.00054246,120]
[320840532,1711612238816,-500.0,0.00054246,120]
[320840533,1711612238828,-1391.37,0.00054246,120]
[320840534,1711612238837,-500.0,0.00054246,120]
[320840535,1711612238848,-504.64755292,0.00054246,120]
[320840536,1711612238859,-500.0,0.00054246,120]
[320840537,1711612238879,-500.0,0.00054246,120]
[320840538,1711612238893,-500.0,0.00054246,120]
[320840539,1711612238904,-500.0,0.00054246,120]
[320840540,1711612238913,-500.0,0.00054246,120]
[320840541,1711612238924,-500.0,0.00054246,120]
[320840542,1711612238934,-500.0,0.00054246,120]
[320840543,1711612238943,-500.0,0.00054246,120]
[320840544,1711612238952,-500.0,0.00054246,120]
[320840545,1711612238962,-500.0,0.00054246,120]
[320840546,1711612238971,-500.0,0.00054246,120]
[320840547,1711612238980,-500.0,0.00054246,120]
[320840548,1711612238990,-500.0,0.00054246,120]
[320840549,1711612238999,-504.37,0.00054246,120]
[320840550,1711612239009,-500.0,0.00054246,120]
[320840551,1711612239019,-852.44,0.00054246,120]
[320840552,1711612239029,-500.0,0.00054246,120]
[320840553,1711612239039,-500.0,0.00054246,120]
[320840554,1711612239049,-1215.78,0.00054246,120]
[320840555,1711612239060,-500.0,0.00054246,120]
[320840556,1711612239070,-500.0,0.00054246,120]
[320840557,1711612239080,-500.0,0.00054246,120]
[320840558,1711612239090,-524.85619626,0.00054246,120]
[320840559,1711612239100,-579.13018357,0.00054246,120]
[320840560,1711612239110,-500.0,0.00054246,120]
[320840561,1711612239120,-503.57582157,0.00054246,120]
[320840562,1711612239130,-500.0,0.00054246,120]
[320840563,1711612239140,-500.0,0.00054246,120]
[320840564,1711612239150,-500.0,0.00054246,120]
[320840565,1711612239160,-500.0,0.00054246,120]
[320840566,1711612239171,-1525.54272011,0.00054246,2]
[320840567,1711612239181,-506.10844265,0.00054246,120]
[320840568,1711612239191,-500.0,0.00054246,120]
[320840569,1711612239202,-500.0,0.00054246,120]
[320840570,1711612239212,-509.02693485,0.00054246,120]
[320840571,1711612239222,-500.0,0.00054246,120]
[320840572,1711612239232,-500.0,0.00054246,120]
[320840573,1711612239241,-500.0,0.00054246,120]
[320840574,1711612239251,-500.0,0.00054246,120]
[320840575,1711612239261,-500.0,0.00054246,120]
[320840576,1711612239271,-500.0,0.00054246,120]
[320840577,1711612239282,-500.0,0.00054246,120]
[320840578,1711612239293,-504.78649914,0.00054246,120]
[320840579,1711612239303,-510.05,0.00054246,120]
[320840580,1711612239313,-500.0,0.00054246,120]
[320840581,1711612239323,-500.0,0.00054246,120]
[320840582,1711612239333,-500.0,0.00054246,120]
[320840583,1711612239342,-500.0,0.00054246,120]
[320840584,1711612239352,-500.0,0.00054246,120]
[320840585,1711612239362,-241.40336922,0.00054246,120]
[320840586,1711612239372,-500.0,0.00054246,120]
[320840587,1711612239383,-514.81760282,0.00054246,120]
[320840588,1711612239393,-398.14,0.00054246,120]
[320840589,1711612239406,-500.0,0.00054246,120]
[320840590,1711612239417,-500.0,0.00054246,120]
[320840591,1711612239428,-500.0,0.00054246,120]
[320840592,1711612239441,-500.5764945,0.00054246,120]
[320840593,1711612239452,-1790.5,0.00054246,120]
[320840594,1711612239463,-500.0,0.00054246,120]
[320840595,1711612239474,-500.0,0.00054246,120]
[320840596,1711612239484,-1355.52,0.00054246,120]
[320840597,1711612239497,-500.0,0.00054246,120]
[320840598,1711612239508,-500.0,0.00054246,120]
[320840599,1711612239520,-500.0,0.00054246,120]
[320840600,1711612239531,-500.0,0.00054246,120]
[320840601,1711612239543,-500.0,0.00054246,120]
[320840602,1711612239554,-500.0,0.00054246,120]
[320840603,1711612239564,-530.98,0.00054246,120]
[320840604,1711612239576,-500.0,0.00054246,2]
[320840605,1711612239587,-500.0,0.00054246,120]
[320840606,1711612239599,-970.1,0.00054246,120]
[320840607,1711612239610,-513.22940806,0.00054246,120]
[320840608,1711612239620,-500.0,0.00054246,120]
[320840609,1711612239630,-1927.57,0.00054246,120]
[320840610,1711612239644,-500.0,0.00054246,120]
[320840611,1711612239654,-500.0,0.00054246,120]
[320840612,1711612239664,-500.0,0.00054246,120]
[320840613,1711612239674,-500.0,0.00054246,120]
[320840614,1711612239685,-500.0,0.00054246,120]
[320840615,1711612239695,-514.13814694,0.00054246,120]
[320840616,1711612239706,-500.0,0.00054246,120]
[320840617,1711612239715,-500.0,0.00054246,120]
[320840618,1711612239725,-500.0,0.00054246,120]
[320840619,1711612239735,-513.5451371,0.00054246,120]
[320840620,1711612239745,-500.0,0.00054246,120]
[320840621,1711612239755,-500.0,0.00054246,120]
[320840622,1711612239765,-500.0,0.00054246,120]
[320840623,1711612239777,-500.0,0.00054246,120]
[320840624,1711612239787,-500.0,0.00054246,120]
[320840625,1711612239796,-556.82,0.00054246,120]
[320840626,1711612239806,-500.0,0.00054246,120]
[320840627,1711612239817,-1151.43,0.00054246,120]
[320840628,1711612239826,-1863.17,0.00054246,120]
[320840629,1711612239836,-500.0,0.00054246,120]
[320840630,1711612239846,-891.99,0.00054246,120]
[320840632,1711612239856,-500.0,0.00054246,120]
[320840634,1711612239866,-643.21,0.00054246,120]
[320840636,1711612239876,-2208.36,0.00054246,120]
[320840638,1711612239887,-500.0,0.00054246,120]
[320840641,1711612239897,-521.84836123,0.00054246,120]
[320840643,1711612239907,-500.0,0.00054246,120]
[320840645,1711612239917,-508.62012816,0.00054246,120]
[320840648,1711612239930,-500.0,0.00054246,120]
[320840651,1711612239940,-500.0,0.00054246,120]
[320840654,1711612239950,-500.0,0.00054246,120]
[320840656,1711612239962,-517.13258648,0.00054246,120]
[320840658,1711612239972,-500.0,0.00054246,120]
[320840660,1711612239982,-500.0,0.00054246,120]
[320840663,1711612239993,-509.8402006,0.00054246,120]
[320840667,1711612240003,-515.91167691,0.00054246,120]
[320840670,1711612240014,-500.0,0.00054246,120]
[320840671,1711612240024,-500.0,0.00054246,120]
[320840673,1711612240034,-1122.98,0.00054246,120]
[320840674,1711612240044,-500.0,0.00054246,120]
[320840675,1711612240055,-500.0,0.00054246,120]
[320840676,1711612240066,-2582.74,0.00054246,120]
[320840677,1711612240076,-745.4,0.00054246,120]
[320840678,1711612240086,-505.24412262,0.00054246,120]
[320840679,1711612240096,-928.78,0.00054246,120]
[320840680,1711612240106,-500.0,0.00054246,120]
[320840681,1711612240117,-500.0,0.00054246,120]
[320840682,1711612240128,-500.0,0.00054246,120]
[320840683,1711612240138,-500.0,0.00054246,120]
[320840684,1711612240149,-661.68,0.00054246,120]
[320840685,1711612240160,-500.0,0.00054246,120]
[320840686,1711612240170,-500.0,0.00054246,120]
[320840687,1711612240180,-500.0,0.00054246,120]
[320840688,1711612240191,-500.0,0.00054246,120]
[320840689,1711612240202,-500.0,0.00054246,120]
[320840690,1711612240211,-500.0,0.00054246,120]
[320840691,1711612240222,-500.0,0.00054246,120]
[320840692,1711612240233,-500.0,0.00054246,120]
[320840693,1711612240243,-511.92746397,0.00054246,120]
[320840694,1711612240253,-500.0,0.00054246,120]
[320840695,1711612240263,-547.86,0.00054246,120]
[320840696,1711612240276,-771.92,0.00054246,120]
[320840697,1711612240286,-1078.99,0.00054246,120]
[320840698,1711612240297,-500.0,0.00054246,120]
[320840699,1711612240307,-1967.56,0.00054246,120]
[320840700,1711612240316,-500.0,0.00054246,120]
[320840701,1711612240326,-500.0,0.00054246,120]
[320840702,1711612240336,-500.0,0.00054246,120]
[320840703,1711612240346,-500.0,0.00054246,120]
[320840704,1711612240357,-500.0,0.00054246,120]
[320840705,1711612240367,-507.32838069,0.00054246,120]
[320840706,1711612240376,-508.81049282,0.00054246,120]
[320840707,1711612240386,-1071.27,0.00054246,120]